[Event "Titled Tuesday Blitz May 17 Late 2022"]
[White "Moroni, Luca Jr"]
[Black "Kruckenhauser, Arthur"]
[WhiteFideId "865834"]
[BlackFideId "1642812"]
[WhiteElo "2573"]
[BlackElo "2243"]
[Result "1-0"]
[Round "02"]
[TimeControl "180+1"]
[Date "2022.05.17"]
[WhiteClock "0:00:40"]
[BlackClock "0:00:13"]

1. d4 {[%clk 0:03:00]}  Nf6 {[%clk 0:02:57]} 2. c4 {[%clk 0:03:01]}  e6 {[%clk 0:02:58]} 3. Nc3 {[%clk 0:03:01]}  Bb4 {[%clk 0:02:58]} 4. Nf3 {[%clk 0:03:01]}  d5 {[%clk 0:02:58]} 5. cxd5 {[%clk 0:03:01]}  exd5 {[%clk 0:02:58]} 6. Bf4 {[%clk 0:03:01]}  Nc6 {[%clk 0:02:53]} 7. Rc1 {[%clk 0:02:54]}  Ne4 {[%clk 0:02:52]} 8. g3 {[%clk 0:02:51]}  Bf5 {[%clk 0:02:20]} 9. Qb3 {[%clk 0:02:46]}  a5 {[%clk 0:02:01]} 10. a3 {[%clk 0:02:36]}  a4 {[%clk 0:01:59]} 11. Qa2 {[%clk 0:02:36]}  Bxc3+ {[%clk 0:01:59]} 12. bxc3 {[%clk 0:02:35]}  Na5 {[%clk 0:01:59]} 13. Bg2 {[%clk 0:02:16]}  Nb3 {[%clk 0:01:56]} 14. O-O {[%clk 0:02:13]}  Nxc1 {[%clk 0:01:54]} 15. Rxc1 {[%clk 0:02:14]}  O-O {[%clk 0:01:54]} 16. Ne5 {[%clk 0:02:12]}  c6 {[%clk 0:01:52]} 17. Qb2 {[%clk 0:02:01]}  Nd6 {[%clk 0:01:51]} 18. Qb4 {[%clk 0:01:59]}  Nb5 {[%clk 0:01:47]} 19. h4 {[%clk 0:01:35]}  Re8 {[%clk 0:01:46]} 20. e3 {[%clk 0:01:33]}  f6 {[%clk 0:01:43]} 21. Nf3 {[%clk 0:01:31]}  Qe7 {[%clk 0:01:43]} 22. Qxe7 {[%clk 0:01:23]}  Rxe7 {[%clk 0:01:44]} 23. Nd2 {[%clk 0:01:23]}  Ree8 {[%clk 0:01:27]} 24. c4 {[%clk 0:01:22]}  Nxa3 {[%clk 0:01:26]} 25. cxd5 {[%clk 0:01:22]}  Bd7 {[%clk 0:01:13]} 26. dxc6 {[%clk 0:01:14]}  bxc6 {[%clk 0:01:11]} 27. Ne4 {[%clk 0:01:14]}  Nb5 {[%clk 0:01:00]} 28. Nc5 {[%clk 0:01:13]}  Red8 {[%clk 0:00:54]} 29. Nxd7 {[%clk 0:01:12]}  Rxd7 {[%clk 0:00:54]} 30. Bxc6 {[%clk 0:01:12]}  Rda7 {[%clk 0:00:48]} 31. Bxb5 {[%clk 0:01:10]}  a3 {[%clk 0:00:48]} 32. Bc6 {[%clk 0:00:45]}  Rd8 {[%clk 0:00:40]} 33. d5 {[%clk 0:00:42]}  Kf7 {[%clk 0:00:38]} 34. Ra1 {[%clk 0:00:41]}  a2 {[%clk 0:00:22]} 35. d6 {[%clk 0:00:41]}  Ke6 {[%clk 0:00:22]} 36. e4 {[%clk 0:00:41]}  g5 {[%clk 0:00:15]} 37. hxg5 {[%clk 0:00:40]}  fxg5 {[%clk 0:00:15]} 38. Bd5+ {[%clk 0:00:41]}  Kd7 {[%clk 0:00:16]} 39. Bxg5 {[%clk 0:00:41]}  Rg8 {[%clk 0:00:13]} 40. Bxg8 {[%clk 0:00:40]} 1-0


[Site "https://www.chess.com"]

[Event "Titled Tuesday Blitz May 17 Late 2022"]
[White "Pap, Gyula"]
[Black "Khater, Sherif"]
[WhiteFideId "725323"]
[BlackFideId "2034280"]
[WhiteElo "2553"]
[BlackElo "2612"]
[Result "1-0"]
[Round "02"]
[TimeControl "180+1"]
[Date "2022.05.17"]
[WhiteClock "0:00:05"]
[BlackClock "0:00:19"]

1. d4 {[%clk 0:03:00]}  g6 {[%clk 0:02:56]} 2. e4 {[%clk 0:03:00]}  Bg7 {[%clk 0:02:57]} 3. h4 {[%clk 0:03:00]}  h5 {[%clk 0:02:57]} 4. Nf3 {[%clk 0:03:00]}  d6 {[%clk 0:02:58]} 5. Ng5 {[%clk 0:02:58]}  Nf6 {[%clk 0:02:57]} 6. Bc4 {[%clk 0:02:54]}  O-O {[%clk 0:02:57]} 7. Qe2 {[%clk 0:02:51]}  Nc6 {[%clk 0:02:53]} 8. c3 {[%clk 0:02:44]}  d5 {[%clk 0:02:40]} 9. exd5 {[%clk 0:02:42]}  Nxd5 {[%clk 0:02:41]} 10. Qe4 {[%clk 0:02:19]}  e6 {[%clk 0:02:33]} 11. O-O {[%clk 0:02:10]}  a5 {[%clk 0:02:29]} 12. a4 {[%clk 0:02:05]}  Nce7 {[%clk 0:02:22]} 13. Nd2 {[%clk 0:01:56]}  Nf5 {[%clk 0:02:16]} 14. Bb3 {[%clk 0:01:44]}  Nf6 {[%clk 0:02:08]} 15. Qf4 {[%clk 0:01:40]}  Nd5 {[%clk 0:02:07]} 16. Qe4 {[%clk 0:01:40]}  Nf6 {[%clk 0:02:06]} 17. Qf4 {[%clk 0:01:38]}  Nd5 {[%clk 0:02:05]} 18. Qh2 {[%clk 0:01:36]}  b6 {[%clk 0:01:55]} 19. Ndf3 {[%clk 0:01:29]}  Bb7 {[%clk 0:01:52]} 20. Bf4 {[%clk 0:01:24]}  Nxf4 {[%clk 0:01:51]} 21. Qxf4 {[%clk 0:01:24]}  Qd6 {[%clk 0:01:40]} 22. Ne5 {[%clk 0:01:16]}  Bd5 {[%clk 0:01:24]} 23. Ne4 {[%clk 0:00:51]}  Qe7 {[%clk 0:01:11]} 24. Bxd5 {[%clk 0:00:45]}  exd5 {[%clk 0:01:12]} 25. Ng3 {[%clk 0:00:42]}  Bxe5 {[%clk 0:00:57]} 26. dxe5 {[%clk 0:00:38]}  Qxh4 {[%clk 0:00:57]} 27. Qxh4 {[%clk 0:00:36]}  Nxh4 {[%clk 0:00:58]} 28. Rad1 {[%clk 0:00:33]}  c6 {[%clk 0:00:54]} 29. Rd4 {[%clk 0:00:34]}  Nf5 {[%clk 0:00:54]} 30. Nxf5 {[%clk 0:00:34]}  gxf5 {[%clk 0:00:55]} 31. Rf4 {[%clk 0:00:30]}  Kg7 {[%clk 0:00:53]} 32. Rxf5 {[%clk 0:00:30]}  Rh8 {[%clk 0:00:52]} 33. Rd1 {[%clk 0:00:24]}  Rh6 {[%clk 0:00:48]} 34. Rd3 {[%clk 0:00:24]}  Re8 {[%clk 0:00:47]} 35. Rg3+ {[%clk 0:00:20]}  Rg6 {[%clk 0:00:48]} 36. Rgf3 {[%clk 0:00:21]}  Re7 {[%clk 0:00:46]} 37. Rxh5 {[%clk 0:00:21]}  Rg4 {[%clk 0:00:42]} 38. b3 {[%clk 0:00:11]}  b5 {[%clk 0:00:35]} 39. axb5 {[%clk 0:00:12]}  cxb5 {[%clk 0:00:36]} 40. Rfh3 {[%clk 0:00:12]}  a4 {[%clk 0:00:30]} 41. bxa4 {[%clk 0:00:11]}  bxa4 {[%clk 0:00:31]} 42. Rh8 {[%clk 0:00:08]}  Kg6 {[%clk 0:00:20]} 43. R3h5 {[%clk 0:00:02]}  a3 {[%clk 0:00:16]} 44. R5h6+ {[%clk 0:00:02]}  Kf5 {[%clk 0:00:16]} 45. Ra6 {[%clk 0:00:02]}  Rxe5 {[%clk 0:00:15]} 46. Rh5+ {[%clk 0:00:02]}  Ke4 {[%clk 0:00:13]} 47. Rxe5+ {[%clk 0:00:03]}  Kxe5 {[%clk 0:00:13]} 48. Rxa3 {[%clk 0:00:04]}  Rc4 {[%clk 0:00:14]} 49. Kf1 {[%clk 0:00:04]}  Ke4 {[%clk 0:00:14]} 50. Ke2 {[%clk 0:00:04]}  Ke5 {[%clk 0:00:14]} 51. Rb3 {[%clk 0:00:04]}  f5 {[%clk 0:00:14]} 52. Kd3 {[%clk 0:00:04]}  f4 {[%clk 0:00:13]} 53. f3 {[%clk 0:00:04]}  Rc8 {[%clk 0:00:13]} 54. Rb7 {[%clk 0:00:03]}  Rg8 {[%clk 0:00:13]} 55. Re7+ {[%clk 0:00:04]}  Kf5 {[%clk 0:00:12]} 56. Re2 {[%clk 0:00:05]}  Rc8 {[%clk 0:00:11]} 57. Kd4 {[%clk 0:00:05]}  Rc4+ {[%clk 0:00:12]} 58. Kd3 {[%clk 0:00:05]}  Rc7 {[%clk 0:00:12]} 59. Ra2 {[%clk 0:00:05]}  Re7 {[%clk 0:00:12]} 60. Ra5 {[%clk 0:00:05]}  Re3+ {[%clk 0:00:12]} 61. Kd4 {[%clk 0:00:05]}  Re2 {[%clk 0:00:12]} 62. Rxd5+ {[%clk 0:00:05]}  Kf6 {[%clk 0:00:12]} 63. c4 {[%clk 0:00:04]}  Rxg2 {[%clk 0:00:12]} 64. Kc5 {[%clk 0:00:05]}  Ke6 {[%clk 0:00:12]} 65. Rd3 {[%clk 0:00:03]}  Re2 {[%clk 0:00:13]} 66. Kd4 {[%clk 0:00:02]}  Ra2 {[%clk 0:00:12]} 67. Ke4 {[%clk 0:00:02]}  Ra4 {[%clk 0:00:11]} 68. Rd4 {[%clk 0:00:02]}  Kf6 {[%clk 0:00:11]} 69. Kxf4 {[%clk 0:00:03]}  Ke6 {[%clk 0:00:12]} 70. Ke4 {[%clk 0:00:03]}  Kf6 {[%clk 0:00:12]} 71. f4 {[%clk 0:00:04]}  Ke6 {[%clk 0:00:13]} 72. f5+ {[%clk 0:00:04]}  Kf6 {[%clk 0:00:14]} 73. Kd5 {[%clk 0:00:04]}  Ra8 {[%clk 0:00:13]} 74. c5 {[%clk 0:00:04]}  Ke7 {[%clk 0:00:14]} 75. Ke5 {[%clk 0:00:04]}  Rc8 {[%clk 0:00:13]} 76. Rd5 {[%clk 0:00:03]}  Rc6 {[%clk 0:00:13]} 77. Kd4 {[%clk 0:00:02]}  Kf6 {[%clk 0:00:14]} 78. Kc4 {[%clk 0:00:02]}  Ke7 {[%clk 0:00:14]} 79. Kb5 {[%clk 0:00:02]}  Rc8 {[%clk 0:00:14]} 80. c6 {[%clk 0:00:03]}  Rb8+ {[%clk 0:00:15]} 81. Kc5 {[%clk 0:00:03]}  Rb1 {[%clk 0:00:16]} 82. Rd7+ {[%clk 0:00:03]}  Ke8 {[%clk 0:00:16]} 83. Rd2 {[%clk 0:00:03]}  Rc1+ {[%clk 0:00:17]} 84. Kb6 {[%clk 0:00:03]}  Rb1+ {[%clk 0:00:16]} 85. Kc7 {[%clk 0:00:04]}  Rb5 {[%clk 0:00:17]} 86. Re2+ {[%clk 0:00:03]}  Kf7 {[%clk 0:00:16]} 87. Kd6 {[%clk 0:00:04]}  Rb1 {[%clk 0:00:15]} 88. c7 {[%clk 0:00:04]}  Rd1+ {[%clk 0:00:16]} 89. Kc6 {[%clk 0:00:04]}  Rc1+ {[%clk 0:00:17]} 90. Kb7 {[%clk 0:00:05]}  Rb1+ {[%clk 0:00:17]} 91. Kc8 {[%clk 0:00:05]}  Kf6 {[%clk 0:00:18]} 92. Re3 {[%clk 0:00:03]}  Kxf5 {[%clk 0:00:18]} 93. Kd8 {[%clk 0:00:04]}  Rd1+ {[%clk 0:00:18]} 94. Ke7 {[%clk 0:00:04]}  Rc1 {[%clk 0:00:18]} 95. Kd7 {[%clk 0:00:04]}  Rd1+ {[%clk 0:00:19]} 96. Kc8 {[%clk 0:00:04]}  Rb1 {[%clk 0:00:18]} 97. Rd3 {[%clk 0:00:03]}  Ke6 {[%clk 0:00:19]} 98. Kd8 {[%clk 0:00:03]}  Rc1 {[%clk 0:00:18]} 99. c8=Q+ {[%clk 0:00:04]}  Rxc8+ {[%clk 0:00:19]} 100. Kxc8 {[%clk 0:00:05]} 1-0


[Site "https://www.chess.com"]

[Event "Titled Tuesday Blitz May 17 Late 2022"]
[White "Pichot, Alan"]
[Black "Martinez Reyes, Pedro Ramon"]
[WhiteFideId "110973"]
[BlackFideId "3901807"]
[WhiteElo "2579"]
[BlackElo "2410"]
[Result "1-0"]
[Round "02"]
[TimeControl "180+1"]
[Date "2022.05.17"]
[WhiteClock "0:01:15"]
[BlackClock "0:00:07"]

1. d4 {[%clk 0:03:00]}  Nf6 {[%clk 0:03:00]} 2. Nf3 {[%clk 0:03:00]}  d5 {[%clk 0:02:59]} 3. c4 {[%clk 0:03:00]}  dxc4 {[%clk 0:02:59]} 4. e3 {[%clk 0:02:59]}  e6 {[%clk 0:03:00]} 5. Bxc4 {[%clk 0:02:59]}  c5 {[%clk 0:03:00]} 6. O-O {[%clk 0:02:58]}  Nc6 {[%clk 0:03:01]} 7. dxc5 {[%clk 0:02:56]}  Qxd1 {[%clk 0:02:59]} 8. Rxd1 {[%clk 0:02:57]}  Bxc5 {[%clk 0:03:00]} 9. a3 {[%clk 0:02:58]}  O-O {[%clk 0:02:59]} 10. b4 {[%clk 0:02:58]}  Be7 {[%clk 0:03:00]} 11. Bb2 {[%clk 0:02:58]}  Bd7 {[%clk 0:02:56]} 12. Nbd2 {[%clk 0:02:46]}  Rfd8 {[%clk 0:02:42]} 13. Nb3 {[%clk 0:02:44]}  Rac8 {[%clk 0:02:39]} 14. Rac1 {[%clk 0:02:39]}  Be8 {[%clk 0:02:34]} 15. Rxd8 {[%clk 0:02:35]}  Rxd8 {[%clk 0:02:13]} 16. b5 {[%clk 0:02:17]}  Nb8 {[%clk 0:02:11]} 17. a4 {[%clk 0:02:15]}  Rc8 {[%clk 0:01:46]} 18. Bd4 {[%clk 0:02:04]}  Ba3 {[%clk 0:01:28]} 19. Rc2 {[%clk 0:01:50]}  a6 {[%clk 0:01:28]} 20. Ne1 {[%clk 0:01:39]}  Bb4 {[%clk 0:01:19]} 21. Bd3 {[%clk 0:01:32]}  Rxc2 {[%clk 0:00:40]} 22. Nxc2 {[%clk 0:01:33]}  Bd6 {[%clk 0:00:35]} 23. Na5 {[%clk 0:01:31]}  axb5 {[%clk 0:00:27]} 24. Nxb7 {[%clk 0:01:22]}  Bc7 {[%clk 0:00:11]} 25. axb5 {[%clk 0:01:18]}  Nbd7 {[%clk 0:00:11]} 26. Nb4 {[%clk 0:01:16]}  Nb6 {[%clk 0:00:10]} 27. Na6 {[%clk 0:01:15]}  Nbd5 {[%clk 0:00:08]} 28. Nxc7 {[%clk 0:01:14]}  Nxc7 {[%clk 0:00:08]} 29. Nd6 {[%clk 0:01:15]}  Bd7 {[%clk 0:00:07]} 30. b6 {[%clk 0:01:15]} 1-0


[Site "https://www.chess.com"]

[Event "Titled Tuesday Blitz May 17 Late 2022"]
[White "Popilski, Gil"]
[Black "Paravyan, David"]
[WhiteFideId "2809060"]
[BlackFideId "4194985"]
[WhiteElo "2537"]
[BlackElo "2569"]
[Result "1-0"]
[Round "02"]
[TimeControl "180+1"]
[Date "2022.05.17"]
[WhiteClock "0:00:16"]
[BlackClock "0:00:08"]

1. e4 {[%clk 0:03:00]}  e5 {[%clk 0:02:59]} 2. Nf3 {[%clk 0:03:00]}  Nf6 {[%clk 0:02:59]} 3. Nxe5 {[%clk 0:02:57]}  d6 {[%clk 0:02:58]} 4. Nf3 {[%clk 0:02:57]}  Nxe4 {[%clk 0:02:59]} 5. d4 {[%clk 0:02:58]}  d5 {[%clk 0:02:59]} 6. Bd3 {[%clk 0:02:58]}  Bd6 {[%clk 0:02:59]} 7. O-O {[%clk 0:02:56]}  O-O {[%clk 0:02:59]} 8. c4 {[%clk 0:02:56]}  c6 {[%clk 0:02:59]} 9. Qc2 {[%clk 0:02:56]}  h6 {[%clk 0:02:57]} 10. Nc3 {[%clk 0:02:48]}  Nxc3 {[%clk 0:02:53]} 11. bxc3 {[%clk 0:02:43]}  Re8 {[%clk 0:02:51]} 12. Rb1 {[%clk 0:02:41]}  dxc4 {[%clk 0:02:40]} 13. Bxc4 {[%clk 0:02:34]}  Qf6 {[%clk 0:02:40]} 14. Bd3 {[%clk 0:02:30]}  b6 {[%clk 0:02:19]} 15. Be3 {[%clk 0:02:19]}  Ba6 {[%clk 0:01:54]} 16. c4 {[%clk 0:02:08]}  Nd7 {[%clk 0:01:53]} 17. Rfe1 {[%clk 0:02:07]}  Nf8 {[%clk 0:01:39]} 18. h3 {[%clk 0:01:59]}  Ng6 {[%clk 0:01:29]} 19. Nd2 {[%clk 0:01:36]}  Nf4 {[%clk 0:00:49]} 20. Bf1 {[%clk 0:01:32]}  Qg6 {[%clk 0:00:41]} 21. Qxg6 {[%clk 0:01:31]}  Nxg6 {[%clk 0:00:42]} 22. g3 {[%clk 0:01:23]}  Rad8 {[%clk 0:00:40]} 23. a4 {[%clk 0:01:03]}  Bf8 {[%clk 0:00:28]} 24. f4 {[%clk 0:00:53]}  Ne7 {[%clk 0:00:26]} 25. g4 {[%clk 0:00:51]}  Nc8 {[%clk 0:00:19]} 26. Bg2 {[%clk 0:00:47]}  Bb7 {[%clk 0:00:19]} 27. a5 {[%clk 0:00:43]}  Bd6 {[%clk 0:00:12]} 28. Kf2 {[%clk 0:00:39]}  Bc7 {[%clk 0:00:12]} 29. Ne4 {[%clk 0:00:37]}  Ba6 {[%clk 0:00:10]} 30. Nd2 {[%clk 0:00:35]}  Bb7 {[%clk 0:00:10]} 31. Rb3 {[%clk 0:00:33]}  Nd6 {[%clk 0:00:09]} 32. axb6 {[%clk 0:00:32]}  axb6 {[%clk 0:00:10]} 33. c5 {[%clk 0:00:31]}  Nc8 {[%clk 0:00:02]} 34. cxb6 {[%clk 0:00:30]}  Nxb6 {[%clk 0:00:02]} 35. Reb1 {[%clk 0:00:30]}  Rb8 {[%clk 0:00:01]} 36. Rxb6 {[%clk 0:00:29]}  Bxb6 {[%clk 0:00:02]} 37. Rxb6 {[%clk 0:00:29]}  Ba8 {[%clk 0:00:03]} 38. Nc4 {[%clk 0:00:22]}  Rxb6 {[%clk 0:00:02]} 39. Nxb6 {[%clk 0:00:22]}  Bb7 {[%clk 0:00:03]} 40. f5 {[%clk 0:00:21]}  Kf8 {[%clk 0:00:03]} 41. Bf4 {[%clk 0:00:20]}  Ke7 {[%clk 0:00:03]} 42. Be5 {[%clk 0:00:20]}  f6 {[%clk 0:00:03]} 43. Bc7 {[%clk 0:00:20]}  Kf7 {[%clk 0:00:03]} 44. h4 {[%clk 0:00:20]}  Re7 {[%clk 0:00:02]} 45. Bd6 {[%clk 0:00:19]}  Re8 {[%clk 0:00:03]} 46. Bf3 {[%clk 0:00:20]}  Rd8 {[%clk 0:00:03]} 47. Bc5 {[%clk 0:00:20]}  Ke8 {[%clk 0:00:03]} 48. g5 {[%clk 0:00:19]}  Kf7 {[%clk 0:00:02]} 49. g6+ {[%clk 0:00:19]}  Kg8 {[%clk 0:00:02]} 50. h5 {[%clk 0:00:19]}  Re8 {[%clk 0:00:02]} 51. Bg2 {[%clk 0:00:17]}  Rd8 {[%clk 0:00:02]} 52. Bf1 {[%clk 0:00:17]}  Re8 {[%clk 0:00:02]} 53. Bc4+ {[%clk 0:00:17]}  Kh8 {[%clk 0:00:03]} 54. Be6 {[%clk 0:00:17]}  Rc8 {[%clk 0:00:03]} 55. Bxc8 {[%clk 0:00:15]}  Ba6 {[%clk 0:00:03]} 56. Bxa6 {[%clk 0:00:14]}  Kg8 {[%clk 0:00:03]} 57. Bb7 {[%clk 0:00:14]}  Kh8 {[%clk 0:00:04]} 58. Bxc6 {[%clk 0:00:14]}  Kg8 {[%clk 0:00:05]} 59. d5 {[%clk 0:00:15]}  Kh8 {[%clk 0:00:06]} 60. d6 {[%clk 0:00:15]}  Kg8 {[%clk 0:00:07]} 61. d7 {[%clk 0:00:16]}  Kh8 {[%clk 0:00:08]} 62. d8=R# {[%clk 0:00:16]} 1-0


[Site "https://www.chess.com"]

[Event "Titled Tuesday Blitz May 17 Late 2022"]
[White "Rasulov, Vugar"]
[Black "Djokic, Mihailo"]
[WhiteFideId "13402390"]
[BlackFideId "976440"]
[WhiteElo "2560"]
[BlackElo "2202"]
[Result "1-0"]
[Round "02"]
[TimeControl "180+1"]
[Date "2022.05.17"]
[WhiteClock "0:01:13"]
[BlackClock "0:00:01"]

1. d4 {[%clk 0:03:00]}  Nf6 {[%clk 0:03:00]} 2. c4 {[%clk 0:03:01]}  g6 {[%clk 0:03:00]} 3. f3 {[%clk 0:02:57]}  d6 {[%clk 0:03:01]} 4. e4 {[%clk 0:02:57]}  Bg7 {[%clk 0:03:01]} 5. Ne2 {[%clk 0:02:57]}  O-O {[%clk 0:03:02]} 6. Be3 {[%clk 0:02:58]}  Nc6 {[%clk 0:03:03]} 7. Qd2 {[%clk 0:02:58]}  a6 {[%clk 0:03:03]} 8. Na3 {[%clk 0:02:57]}  Rb8 {[%clk 0:03:04]} 9. Rc1 {[%clk 0:02:47]}  Bd7 {[%clk 0:03:04]} 10. d5 {[%clk 0:02:43]}  Ne5 {[%clk 0:03:04]} 11. c5 {[%clk 0:02:43]}  c6 {[%clk 0:02:53]} 12. cxd6 {[%clk 0:02:39]}  exd6 {[%clk 0:02:54]} 13. Nc3 {[%clk 0:02:32]}  cxd5 {[%clk 0:02:48]} 14. Nxd5 {[%clk 0:02:33]}  Nxd5 {[%clk 0:02:44]} 15. exd5 {[%clk 0:02:33]}  Re8 {[%clk 0:02:22]} 16. Be2 {[%clk 0:02:33]}  Qh4+ {[%clk 0:02:18]} 17. g3 {[%clk 0:02:26]}  Qh3 {[%clk 0:02:12]} 18. Kf2 {[%clk 0:02:26]}  Qf5 {[%clk 0:02:07]} 19. h3 {[%clk 0:02:21]}  Rbc8 {[%clk 0:01:52]} 20. g4 {[%clk 0:02:18]}  Qf6 {[%clk 0:01:42]} 21. Bg5 {[%clk 0:02:18]}  Nxf3 {[%clk 0:00:38]} 22. Bxf3 {[%clk 0:02:05]}  Qxb2 {[%clk 0:00:38]} 23. Nc4 {[%clk 0:01:55]}  Qb5 {[%clk 0:00:26]} 24. Ne3 {[%clk 0:01:46]}  Qa4 {[%clk 0:00:19]} 25. Kg2 {[%clk 0:01:40]}  f6 {[%clk 0:00:09]} 26. Bh4 {[%clk 0:01:40]}  Bh6 {[%clk 0:00:10]} 27. Bf2 {[%clk 0:01:30]}  Qa3 {[%clk 0:00:07]} 28. Rxc8 {[%clk 0:01:28]}  Bxc8 {[%clk 0:00:04]} 29. Re1 {[%clk 0:01:29]}  f5 {[%clk 0:00:04]} 30. Qc2 {[%clk 0:01:17]}  fxg4 {[%clk 0:00:02]} 31. Nxg4 {[%clk 0:01:13]}  Bf5 {[%clk 0:00:01]} 32. Nxh6+ {[%clk 0:01:13]} 1-0


[Site "https://www.chess.com"]

[Event "Titled Tuesday Blitz May 17 Late 2022"]
[White "Risteski, Emil"]
[Black "Norowitz, Yaacov"]
[WhiteFideId "15005267"]
[BlackFideId "2024799"]
[WhiteElo "2070"]
[BlackElo "2412"]
[Result "1/2-1/2"]
[Round "02"]
[TimeControl "180+1"]
[Date "2022.05.17"]
[WhiteClock "0:00:05"]
[BlackClock "0:01:08"]

1. e4 {[%clk 0:02:58]}  c6 {[%clk 0:02:55]} 2. d4 {[%clk 0:02:56]}  d5 {[%clk 0:02:56]} 3. exd5 {[%clk 0:02:55]}  cxd5 {[%clk 0:02:56]} 4. Bd3 {[%clk 0:02:55]}  Nf6 {[%clk 0:02:56]} 5. c3 {[%clk 0:02:55]}  Nc6 {[%clk 0:02:56]} 6. Bf4 {[%clk 0:02:54]}  Bg4 {[%clk 0:02:55]} 7. Qb3 {[%clk 0:02:53]}  Qd7 {[%clk 0:02:55]} 8. Nd2 {[%clk 0:02:53]}  e6 {[%clk 0:02:54]} 9. Ngf3 {[%clk 0:02:54]}  Bd6 {[%clk 0:02:54]} 10. Bg3 {[%clk 0:02:50]}  O-O {[%clk 0:02:53]} 11. O-O {[%clk 0:02:49]}  Rab8 {[%clk 0:02:52]} 12. Rae1 {[%clk 0:02:38]}  Qc7 {[%clk 0:02:51]} 13. Bxd6 {[%clk 0:02:32]}  Qxd6 {[%clk 0:02:51]} 14. Ne5 {[%clk 0:02:33]}  b5 {[%clk 0:02:50]} 15. a3 {[%clk 0:02:14]}  Qc7 {[%clk 0:02:45]} 16. Qc2 {[%clk 0:02:03]}  Bh5 {[%clk 0:02:43]} 17. Re3 {[%clk 0:01:51]}  Bg6 {[%clk 0:02:40]} 18. Bxg6 {[%clk 0:01:46]}  hxg6 {[%clk 0:02:39]} 19. Nd3 {[%clk 0:01:19]}  Nxd4 {[%clk 0:02:38]} 20. Qd1 {[%clk 0:01:17]}  Nf5 {[%clk 0:02:32]} 21. Rh3 {[%clk 0:01:16]}  Ne4 {[%clk 0:02:31]} 22. Nf3 {[%clk 0:01:10]}  f6 {[%clk 0:02:26]} 23. Qe2 {[%clk 0:00:53]}  g5 {[%clk 0:02:23]} 24. g4 {[%clk 0:00:52]}  Nh6 {[%clk 0:02:19]} 25. Nd4 {[%clk 0:00:52]}  Rfe8 {[%clk 0:02:13]} 26. f3 {[%clk 0:00:52]}  Nc5 {[%clk 0:02:13]} 27. Kh1 {[%clk 0:00:36]}  e5 {[%clk 0:02:08]} 28. Nf5 {[%clk 0:00:29]}  Nxf5 {[%clk 0:02:06]} 29. gxf5 {[%clk 0:00:30]}  Nxd3 {[%clk 0:02:07]} 30. Qxd3 {[%clk 0:00:30]}  Qc4 {[%clk 0:02:07]} 31. Qb1 {[%clk 0:00:27]}  Rbd8 {[%clk 0:02:06]} 32. Rg1 {[%clk 0:00:23]}  e4 {[%clk 0:02:03]} 33. f4 {[%clk 0:00:23]}  gxf4 {[%clk 0:01:57]} 34. Rxg7+ {[%clk 0:00:19]}  Kxg7 {[%clk 0:01:56]} 35. Qg1+ {[%clk 0:00:20]}  Kf8 {[%clk 0:01:57]} 36. Rh7 {[%clk 0:00:12]}  Rd7 {[%clk 0:01:40]} 37. Rxd7 {[%clk 0:00:10]}  Re7 {[%clk 0:01:40]} 38. Rd8+ {[%clk 0:00:08]}  Re8 {[%clk 0:01:40]} 39. Rd7 {[%clk 0:00:08]}  Re7 {[%clk 0:01:38]} 40. Rd8+ {[%clk 0:00:06]}  Re8 {[%clk 0:01:08]} 41. Rd7 {[%clk 0:00:05]} 1/2-1/2


[Site "https://www.chess.com"]

[Event "Titled Tuesday Blitz May 17 Late 2022"]
[White "Sadhwani, Raunak"]
[Black "Goltsev, Dmitry"]
[WhiteFideId "35093487"]
[BlackFideId "24176710"]
[WhiteElo "2616"]
[BlackElo "2258"]
[Result "1-0"]
[Round "02"]
[TimeControl "180+1"]
[Date "2022.05.17"]
[WhiteClock "0:00:29"]
[BlackClock "0:00:22"]

1. e4 {[%clk 0:03:00]}  e6 {[%clk 0:03:00]} 2. Qe2 {[%clk 0:02:59]}  d5 {[%clk 0:03:00]} 3. exd5 {[%clk 0:02:59]}  Qxd5 {[%clk 0:03:01]} 4. Nc3 {[%clk 0:02:58]}  Qd8 {[%clk 0:03:02]} 5. Nf3 {[%clk 0:02:55]}  Nf6 {[%clk 0:03:02]} 6. g3 {[%clk 0:02:55]}  Nc6 {[%clk 0:03:03]} 7. Bg2 {[%clk 0:02:56]}  Bc5 {[%clk 0:03:03]} 8. O-O {[%clk 0:02:56]}  a6 {[%clk 0:03:03]} 9. d3 {[%clk 0:02:55]}  O-O {[%clk 0:03:03]} 10. Bg5 {[%clk 0:02:54]}  h6 {[%clk 0:03:03]} 11. Bxf6 {[%clk 0:02:54]}  Qxf6 {[%clk 0:03:04]} 12. Ne4 {[%clk 0:02:55]}  Qe7 {[%clk 0:03:05]} 13. Nxc5 {[%clk 0:02:56]}  Qxc5 {[%clk 0:03:06]} 14. c3 {[%clk 0:02:56]}  e5 {[%clk 0:03:04]} 15. Rfe1 {[%clk 0:02:56]}  Bg4 {[%clk 0:03:03]} 16. h3 {[%clk 0:02:54]}  Bxf3 {[%clk 0:03:03]} 17. Bxf3 {[%clk 0:02:55]}  Rad8 {[%clk 0:03:03]} 18. Rad1 {[%clk 0:02:53]}  f6 {[%clk 0:03:02]} 19. h4 {[%clk 0:02:50]}  Rd6 {[%clk 0:02:59]} 20. h5 {[%clk 0:02:51]}  Rfd8 {[%clk 0:02:58]} 21. Be4 {[%clk 0:02:51]}  Ne7 {[%clk 0:02:55]} 22. Bxb7 {[%clk 0:02:49]}  Qb5 {[%clk 0:02:45]} 23. Be4 {[%clk 0:02:49]}  a5 {[%clk 0:01:58]} 24. Rd2 {[%clk 0:02:30]}  c5 {[%clk 0:01:41]} 25. Red1 {[%clk 0:02:21]}  f5 {[%clk 0:01:32]} 26. Bg2 {[%clk 0:02:06]}  e4 {[%clk 0:01:31]} 27. Qe3 {[%clk 0:01:35]}  Rxd3 {[%clk 0:01:11]} 28. Bf1 {[%clk 0:01:21]}  c4 {[%clk 0:01:01]} 29. Bxd3 {[%clk 0:01:19]}  cxd3 {[%clk 0:01:01]} 30. b3 {[%clk 0:00:57]}  Nc6 {[%clk 0:01:01]} 31. c4 {[%clk 0:00:42]}  Qe5 {[%clk 0:00:56]} 32. Kg2 {[%clk 0:00:42]}  Nd4 {[%clk 0:00:55]} 33. Rxd3 {[%clk 0:00:41]}  f4 {[%clk 0:00:31]} 34. gxf4 {[%clk 0:00:35]}  Qxh5 {[%clk 0:00:26]} 35. Rxd4 {[%clk 0:00:35]}  Rf8 {[%clk 0:00:24]} 36. Re1 {[%clk 0:00:30]}  Qg4+ {[%clk 0:00:22]} 37. Qg3 {[%clk 0:00:29]} 1-0


[Site "https://www.chess.com"]

[Event "Titled Tuesday Blitz May 17 Late 2022"]
[White "Salem, A.R. Saleh"]
[Black "Guzman, Christopher"]
[WhiteFideId "9301348"]
[BlackFideId "6405096"]
[WhiteElo "2679"]
[BlackElo "2244"]
[Result "1-0"]
[Round "02"]
[TimeControl "180+1"]
[Date "2022.05.17"]
[WhiteClock "0:01:57"]
[BlackClock "0:01:51"]

1. d4 {[%clk 0:03:00]}  Nf6 {[%clk 0:02:59]} 2. c4 {[%clk 0:03:01]}  e6 {[%clk 0:02:59]} 3. Nc3 {[%clk 0:03:02]}  Bb4 {[%clk 0:02:59]} 4. a3 {[%clk 0:03:02]}  Bxc3+ {[%clk 0:02:55]} 5. bxc3 {[%clk 0:03:03]}  c5 {[%clk 0:02:56]} 6. f3 {[%clk 0:03:03]}  b6 {[%clk 0:02:54]} 7. e4 {[%clk 0:03:04]}  Ba6 {[%clk 0:02:54]} 8. Bd3 {[%clk 0:03:03]}  Nc6 {[%clk 0:02:53]} 9. Ne2 {[%clk 0:03:04]}  Na5 {[%clk 0:02:53]} 10. e5 {[%clk 0:02:57]}  Ng8 {[%clk 0:02:53]} 11. Ng3 {[%clk 0:02:55]}  cxd4 {[%clk 0:02:46]} 12. Ne4 {[%clk 0:02:43]}  f5 {[%clk 0:02:37]} 13. Bg5 {[%clk 0:02:38]}  Qc7 {[%clk 0:02:33]} 14. Nd6+ {[%clk 0:02:37]}  Kf8 {[%clk 0:02:33]} 15. cxd4 {[%clk 0:02:34]}  h6 {[%clk 0:02:30]} 16. Bd2 {[%clk 0:02:32]}  Ne7 {[%clk 0:02:29]} 17. O-O {[%clk 0:02:23]}  Nb7 {[%clk 0:02:28]} 18. Bb4 {[%clk 0:02:21]}  Re8 {[%clk 0:02:11]} 19. f4 {[%clk 0:02:16]}  g6 {[%clk 0:02:11]} 20. Qf3 {[%clk 0:02:14]}  Nd8 {[%clk 0:02:10]} 21. Qg3 {[%clk 0:02:11]}  Ndc6 {[%clk 0:02:05]} 22. Qh4 {[%clk 0:02:07]}  g5 {[%clk 0:01:56]} 23. fxg5 {[%clk 0:02:06]}  Nxb4 {[%clk 0:01:55]} 24. axb4 {[%clk 0:01:59]}  Ng6 {[%clk 0:01:51]} 25. Qh5 {[%clk 0:01:57]} 1-0


[Site "https://www.chess.com"]